Cogmind - Beta 17 @@@ ROGUE MODE // 2026.06.28 @ 15:21:33 Player: APerTAS Result: Destroyed by Y-45 Defender with Beam Rifle Performance ------------- Evolutions (1) 500 Regions Visited (2) 400 Robots Destroyed (4) 20 Value Destroyed (147) 147 Prototype IDs (1) 20 Alien Tech Used (0) 0 Bonus (5475) 5475 TOTAL SCORE: 6562 Bonus ------- Pacifist 200 Follower Combat Kills 25 Prayed to X0-1V1 5000 Major X0-1V1 Interference 250 Cogmind --------- Core Integrity 0/400 Matter 295/300 Energy 100/100 System Corruption 2% Temperature Cool (9) Movement Core (50) Location -9/Materials Parts ------- > --- POWER (1) -------- (None) > --- PROPULSION (3) --- (None) > --- UTILITY (3) ------ (None) > --- WEAPON (2) ------- (None) > --- INVENTORY (5) ---- Improved Aluminum Leg VTOL Module VTOL Module Rocket Launcher Heavy Hammer Peak State ------------ > --- POWER ------------ (None) > --- PROPULSION ------- Improved Aluminum Leg VTOL Module VTOL Module > --- UTILITY ---------- Heat Sink X0-1V1's Piety Tracker > --- WEAPON ----------- Beam Cannon > --- INVENTORY -------- Improved Aluminum Leg VTOL Module VTOL Module Rocket Launcher Heavy Hammer [Rating: 22] Favorites ----------- Power None Propulsion VTOL Module Treads Light Treads Leg Improved Aluminum Leg Flight Unit VTOL Module Utility X0-1V1's Piety Tracker Device X0-1V1's Piety Tracker Weapon Beam Cannon Energy Cannon Beam Cannon Build | -11 -10 -9 ------- Run | Yrd Mat Mat Slots Evolved 2 | . . 2 Power . | . . . Propulsion 1 | . . 1 Utility 1 | . . 1 Weapon . | . . . Parts Attached 8 | . 4 4 Power . | . . . Engine . | . . . Core . | . . . Reactor . | . . . Propulsion 5 | . 2 3 Treads 1 | . . 1 Leg 1 | . . 1 Wheel . | . . . Hover . | . . . Flight 3 | . 2 1 Utility 2 | . 2 . Device 2 | . 2 . Storage . | . . . Processor . | . . . Hackware . | . . . Protection . | . . . Artifact . | . . . Weapon 1 | . . 1 Energy Gun . | . . . Energy Cannon 1 | . . 1 Ballistic Gun . | . . . Ballistic Cannon . | . . . Launcher . | . . . Special Weapon . | . . . Impact Weapon . | . . . Slashing Weapon . | . . . Piercing Weapon . | . . . Special Melee Weapon . | . . . Unidentified Prototypes 1 | . 1 . Parts Lost 1 | . . 1 Power . | . . . Propulsion 1 | . . 1 Utility . | . . . Weapon . | . . . Highest Loss Streak 1 | . . 1 To Critical Strikes . | . . . Average Backups 3 | . 1 5 Power . | . . . Propulsion 2 | . . 3 Utility . | . . . Weapon 1 | . . 1 Tool/Special . | . . . Unused Backups 4 | . . 4 Power . | . . . Propulsion 2 | . . 2 Utility . | . . . Weapon 2 | . . 2 Tool/Special . | . . . Average Slot Usage (%) 32 | . 11 48 Leg 4 | . . 7 Flight 10 | . 3 15 Device 13 | . 7 18 Energy Cannon 4 | . . 8 Peak Build Rating 22 | . 18 22 Average Rating 12 | . 7 17 On Entrance 5 | . . 16 Avg Prop Armor Cover (%) 9 | . . 9 Naked Turns 117 | . 76 41 Heaviest Build 5 | . 2 5 Greatest Support 20 | 3 8 20 Greatest Overweight (x) . | . . . Average Overweight (x) . | . . . Largest Inventory Capacity 5 | 5 5 5 Average Capacity 5 | 5 5 5 Most Carried 5 | . 5 5 Average Carried 3 | . 1 4 Final Capacity 5 | 5 5 5 Final Carried 5 | . 5 5 Class Distribution -------------------- 100% | Mutant Dominant Class ---------------- Mutant | -10/Materials Mutant | -9/Materials Resources | -11 -10 -9 ----------- Run | Yrd Mat Mat Matter Collected 220 | 89 . 131 Remotely . | . . . Salvage Created 177 | . . 177 Parts 6 | . . 6 Haulers Intercepted . | . . . Recyclers Shooed . | . . . Parts Field Recycled . | . . . Retrieved Matter . | . . . Parts Self-Destructed . | . . . Prevented . | . . . Parts Restored . | . . . Kills | -11 -10 -9 ------- Run | Yrd Mat Mat Combat Hostiles Destroyed 4 | . . 4 Cannons 4 | . . 4 Classes Destroyed 2 | . . 2 Grunt 3 | . . 3 Sentry 1 | . . 1 Best Kill Streak 3 | . . 3 Combat Bots Only 3 | . . 3 Max Kills in Single Turn 1 | . . 1 Gunslinging . | . . . Exploded . | . . . Melee . | . . . Uniques/NPCs Destroyed . | . . . Combat | -11 -10 -9 -------- Run | Yrd Mat Mat Hostile Shots Fired 65 | . 6 59 Missed 14 | . 3 11 Hits 51 | . 3 48 Projectile 51 | . 3 48 Damage Taken 555 | . 24 531 Core 428 | . 24 404 Absorbed by Shields . | . . . Core Remaining (%) 95 | 100 90 . Volleys Fired 18 | . . 18 Largest 1 | . . 1 Hottest 60 | . . 60 Shots Fired 18 | . . 18 Gun . | . . . Cannon 18 | . . 18 Launcher . | . . . Special . | . . . Kinetic . | . . . Thermal 18 | . . 18 Explosive . | . . . Electromagnetic . | . . . Robot Hit Streak 5 | . . 5 Robot Miss Streak 1 | . . 1 Penetration Max . | . . . Secondary Targets . | . . . Shots Hit Robots 15 | . . 15 Core Hits 8 | . . 8 Critical Kills . | . . . Critical Parts Destroyed . | . . . Critical Strikes . | . . . Melee Attacks . | . . . Impact . | . . . Slashing . | . . . Piercing . | . . . Sneak Attacks . | . . . Combat Hostiles . | . . . Follow-up Attacks . | . . . Damage Inflicted 304 | . . 304 Guns . | . . . Cannons 246 | . . 246 Explosions . | . . . Melee . | . . . Ramming 58 | . . 58 Kinetic . | . . . Thermal 246 | . . 246 Explosive . | . . . Electromagnetic . | . . . Impact . | . . . Slashing . | . . . Piercing . | . . . Highest Corruption 2 | . 2 2 Average Corruption 2 | . 2 2 Corruption Purged . | . . . Corruption Blocked . | . . . Effects 1 | . 1 . Matter Fused 1 | . 1 . Overload Shots . | . . . Overflow Damage . | . . . Projectiles . | . . . Explosions . | . . . Melee . | . . . Knockbacks . | . . . Impact . | . . . Kinetic . | . . . Secondary . | . . . Self-Inflicted Damage 23 | . . 23 Shots . | . . . Rammed 15 | . 1 14 Targets Rammed 18 | . 1 17 Kicked 3 | . . 3 Crushed . | . . . Highest Temperature 88 | . . 88 Average Temperature 53 | . . 53 Received Heat Transfer 132 | . . 132 Siege Activations . | . . . Martial Activations . | . . . Shielding Activations . | . . . Robots Disrupted . | . . . Combat Hostiles . | . . . Robots Corrupted . | . . . Combat Hostiles . | . . . Parts Fried . | . . . Impact Corruptions . | . . . Robots Melted . | . . . Combat Hostiles . | . . . Parts Melted 1 | . . 1 Heat Transferred 518 | . . 518 Parts Sabotaged . | . . . Parts Stolen . | . . . Parts Stripped . | . . . Power Chain Reactions . | . . . Alert | -11 -10 -9 ------- Run | Yrd Mat Mat Maximum Alert Level . | . . . Low Security (%) 100 | 100 100 100 Level 1 . | . . . Level 2 . | . . . Level 3 . | . . . Level 4 . | . . . Level 5 . | . . . High Security . | . . . Max Security . | . . . Peak Influence 101 | . . 101 Initial . | . . . Average 19 | . . 34 Influence Increases 167 | . . 167 Destroy 0b10 Robot/C 100 | . . 100 Destroy Leader 30 | . . 30 Allied During Kill 1 | . . 1 Successful Hack 6 | . . 6 Lose Combat Pursuer 30 | . . 30 Influence Decreases 66 | . . 66 Time Decay 56 | . . 56 Lost Part 10 | . . 10 Squads Dispatched 4 | . 1 3 Investigation 2 | . . 2 Extermination . | . . . Reinforcement 2 | . 1 1 Assault . | . . . Garrison . | . . . Intercept . | . . . Searches Triggered . | . . . Construction Impeded . | . . . Haulers Reinforced . | . . . Active Scanning Responses . | . . . Cargo Convoy Interrupts . | . . . Stealth | -11 -10 -9 --------- Run | Yrd Mat Mat Distress Signals 1 | . . 1 Communications Jammed . | . . . Distress Signals . | . . . Times Spotted 19 | . 5 14 Peak Tracking Total 6 | . 4 6 Tactical Retreats 1 | . . 1 Traps | -11 -10 -9 ------- Run | Yrd Mat Mat Traps Triggered 1 | . 1 . Indirectly . | . . . Trap Hack Attempts . | . . . Triggered . | . . . Disarmed . | . . . Reprogrammed . | . . . Reused . | . . . Traps Extracted . | . . . Installed . | . . . Triggered . | . . . Machines | -11 -10 -9 ---------- Run | Yrd Mat Mat Machines Disabled . | . . . Max in Single Turn . | . . . Machines Repaired . | . . . Machines Dismantled . | . . . Machines Sabotaged . | . . . Overloaded Fab Kills . | . . . Hacking | -11 -10 -9 --------- Run | Yrd Mat Mat Machines Accessed 3 | . 1 2 Terminals 2 | . . 2 Fabricators . | . . . Repair Stations 1 | . 1 . Recycling Units . | . . . Scanalyzers . | . . . Garrison Access . | . . . Total Hacks 6 | . 1 5 Successful 2 | . . 2 Failed 4 | . 1 3 Catastrophic 2 | . 1 1 Database Lockouts . | . . . Manual 5 | . 1 4 Terminals 5 | . . 5 Fabricators . | . . . Repair Stations 1 | . 1 . Recycling Units . | . . . Scanalyzers . | . . . Garrison Access . | . . . Terminal Hacks . | . . . Fabricator Hacks . | . . . Repair Station Hacks . | . . . Recycling Unit Hacks . | . . . Scanalyzer . | . . . Garrison Access Hacks . | . . . Unauthorized Hacks 2 | . . 2 Terminals 2 | . . 2 Botnet 1 | . . 1 Disrupt 1 | . . 1 Fabricators . | . . . Repair Stations . | . . . Recycling Units . | . . . Scanalyzers . | . . . Garrison Access . | . . . Data Cores Recovered . | . . . Used . | . . . Hacking Detections 3 | . 1 2 Full Trace Events 1 | . . 1 Feedback Events . | . . . Feedback Blocked . | . . . Robot Schematics Acquired . | . . . Robots Built . | . . . Authchips . | . . . Time . | . . . Total Robot Build Rating . | . . . Part Schematics Acquired . | . . . Parts Built . | . . . Authchips . | . . . Time . | . . . Total Part Build Rating . | . . . Part Studies Acquired . | . . . Parts Repaired . | . . . Time . | . . . Parts Recycled . | . . . Recycled Matter . | . . . Retrieved Matter . | . . . Retrieved Components . | . . . Parts Scanalyzed . | . . . Part Schematics Acquired . | . . . Parts Damaged . | . . . Bothacking | -11 -10 -9 ------------ Run | Yrd Mat Mat Used RIF Installer . | . . . Robots Hacked . | . . . Non-combat . | . . . Combat . | . . . Robot Hacks Applied . | . . . Relay Couplers Released . | . . . Fabnet Peak Effective % . | . . . Robots Rewired . | . . . Allies Hacked . | . . . Hacks Repelled . | . . . Allies | -11 -10 -9 -------- Run | Yrd Mat Mat Total Allies 1 | . . 1 Largest Group 1 | . . 1 Highest-Rated Group 8 | . . 8 Highest-Rated Ally 8 | . . 8 Total Orders . | . . . Ally Attacks 5 | . . 5 Total Damage 45 | . . 45 Kills 1 | . . 1 Allies Corrupted . | . . . Allies Melted . | . . . X0-1V1 Amusement Gains 67 | . 17 50 Good Acts 3 | . 1 2 Bad Acts 3 | . 1 2 Intel | -11 -10 -9 ------- Run | Yrd Mat Mat Active Infowar (turns) . | . . . Robot Analysis Total . | . . . Derelict Logs Recovered . | . . . Drone Launches . | . . . Drone Recoveries . | . . . Exploration | -11 -10 -9 ------------- Run | Yrd Mat Mat Turns Passed 372 | 9 152 211 Spaces Moved 362 | 18 166 178 Core 187 | 18 116 53 Treads 1 | . . 1 Legs 81 | . . 81 Wheels . | . . . Hover . | . . . Flight 93 | . 50 43 Fastest Speed 32 | 50 32 32 Average Speed 61 | 50 45 78 Slowest Speed 160 | 50 50 160 Overloaded Moves . | . . . Propulsion Burnouts . | . . . Robots Hopped 2 | . 2 . Potential Cave-ins . | . . . Cave-ins Triggered . | . . . Exploration Rate (%) 23 | 3 48 18 Regions Visited 2 Branch Regions . Pre-discovered Areas . | . . . Known Exits Taken . | . . . Unknown Exits Taken 2 | 1 1 . Scrap Searched . | . . . Spaces Dug . | . . . Terrain Destroyed . | . . . Melee . | . . . Projectile . | . . . AOE . | . . . Terrain Rammed . | . . . Walls Destroyed . | . . . Machines Disabled . | . . . Actions | -11 -10 -9 --------- Run | Yrd Mat Mat Total 486 | 17 240 229 Wait 70 | . 63 7 Move 356 | 17 161 178 Hop 2 | . 2 . Pick Up 9 | . 7 2 Fast Attach 4 | . 2 2 Attach 4 | . 2 2 Detach 1 | . 1 . Swap . | . . . Drop 2 | . 1 1 Fire 18 | . . 18 Melee . | . . . Ram 15 | . 1 14 Kick 3 | . . 3 Crush . | . . . Escape Stasis . | . . . Rewire 2 | . . 2 Trap . | . . . Miscellaneous . | . . . Route ------- -11/Scrapyard -10/Materials -9/Materials History --------- Turn | Location | Event 4 | -11/Scrapyard | Discovered new exit (range 13) 10 | -11/Scrapyard | Entered Materials 85 | -10/Materials | Prayed at D.C.S.S. Altar Unit 100 | -10/Materials | X0-1V1 whisked you away to safety 157 | -10/Materials | Discovered new exit (range 15) 162 | -10/Materials | Entered another Materials area 162 | -9/Materials | Evolved 2 slots: Propulsion x1, Utility x1 280 | -9/Materials | X0-1V1 turns hostiles against one another 305 | -9/Materials | Build established: Mutant 332 | -9/Materials | Released all parts (5) 364 | -9/Materials | Core integrity fell below 50% 371 | -9/Materials | Core integrity fell below 20% 373 | -9/Materials | Destroyed by Y-45 Defender with Beam Rifle Last Messages --------------- dissipation). 00305_ VTOL Module destroyed. 00308_ G-34 Mercenary destroyed. 00318_ Acquired 43 matter. 00320_ Acquired 32 matter. 00332_ R-06 Scavenger collects Heat Sink. 00332_ Released Beam Cannon. 00332_ Released Heat Sink. 00332_ Released X0-1V1's Piety Tracker. 00332_ Released VTOL Module. 00332_ Released Imp. Aluminum Leg. 00334_ Slammed into G-34 Mercenary. 00336_ R-06 Scavenger collects Aluminum Leg. 00337_ Slammed into G-34 Mercenary. 00340_ R-06 Scavenger collects Aluminum Leg. 00357_ T-07 Excavator is excavating. 00363_ Slammed into S-10 Pest. 00363_ Destabilizing: System corrupted (+2). 00364_ Slammed into S-10 Pest. 00373_ X0-1V1 cackles wildly! Map ----- +----------------------------------------------------+ | ?????????????????????????????????????????????????? | | ?????????????????????????????????????????????????? | | ?????????????????????????????????????????????????? | | ?????????????????????????????????????????????????? | | ?????????????????????????????????????????????????? | | ?????????????????????????????????????????????????? | | ?????????????????????????????????????????????????? | | ?????????????????????????????????????????????????? | | ?????????????????????????????????????????????????? | | ?????????????????????????????????????????????????? | | ?????????????????????????????????????????????????? | | ?????????????????????????????????????????????????? | | ??????????????????????????????????????????? ????? | | ?????????????????????????????????????????? #???? | | ?????????????????????????????????????????? ???? | | ?????????????????????????????????????????? #???? | | ?????????????????????????????????????????# ##??? | | ????????????????????????????????????????# #### | | ????????????????????????????????????????# | | ??????????????????#?????????????????????+ | | ??????????????????# ????????????????????# | | ??????????????????# ???????????????????# """ | | ??????????????????# ??????????????????# """ | | ?????????? ####### ################### """ | | ????????? | | ????????? @ s | | ????????? s s """ | | ????????????######## ###########+####### """ | | ??????????????????????????????? # """ | | ??????????????????????????????? # | | ?????????????????????????????? "" # " | | ?????????????????????????????? T" # | | ????????????????????????????? "" # ####### | | ????????????????????????????? ###+###?????# | | ????????????????????????????#######?# "???????# | | ????????????????????????????????????# ???????# | | ????????????????????????????????????# ""??????# | | ????????????????????????????????????# ""??????+ | | ????????????????????????????????????# """?????# | | ????????????????????????????????????# ??????# | | ????????????????????????????????????# ??????# | | ????????????????????????????????????? ???????# | | ?????????????????????????????????????##???????# | | ??????????????????????????????????????????????#### | | ?????????????????????????????????????????????????? | | ?????????????????????????????????????????????????? | | ?????????????????????????????????????????????????? | | ?????????????????????????????????????????????????? | | ?????????????????????????????????????????????????? | | ?????????????????????????????????????????????????? | +----------------------------------------------------+ Best States ------------- Heat Dissipation 77 Energy Generation 5 Energy Capacity 100 Matter Stores 284 Matter Capacity 300 Sight Range 16 Terrain Scan Density 10 Evasion (%) 63 Item Schematics ----------------- None Robot Schematics ------------------ None Fabricated ------------ Nothing Repaired ---------- Nothing Studied --------- None Alien Tech Used ----------------- None Achievements -------------- None Challenges ------------ None Game ------ Seed ReinforcedLinearUnit Manual? 0 Play Time 00:07:34 Cumulative 68.0 hours Start 2026.06.28 @ 15:16:40 End 2026.06.28 @ 15:21:33 Sessions 1 Manual Loads 0 Difficulty Rogue Special Mode None Game No. 216 Rogue 216 Adventurer 0 Explorer 0 Win Type - Total 0 Types 0/0/0/0/0/0/0/0/0/0 Lore% 63 Gallery% 37 Achievement% 36 Wizard Run 0 Options --------- Layout 0 ASCII 0 Keyboard 1 Movement Arrows Keybinds 0 Fullscreen 1 Font 24/Terminus Map View 64x52 Zoom Use 0% Tactical HUD 1 Map Filters NONE Filters NONE Steam 1 RUN: 6f50c970-34df-466e-8a21-dde74e4469f4